bitfinex/quotes_SOLUSD_20240908
["timestamp","ask_amount","ask_price","bid_price","bid_amount"]
[1725798617046,45.0,129.76,129.68,11.8775]
[1725798617422,7.7054,129.78,129.68,11.8775]
[1725798617637,20.0,129.77,129.68,11.8775]
[1725798618751,45.0,129.76,129.68,11.8775]
[1725798619336,52.7066,129.76,129.68,11.8775]
[1725798620954,45.0,129.76,129.68,11.8775]
[1725798625747,68.18,129.76,129.68,11.8775]
[1725798626154,68.18,129.76,129.68,8.7394]
[1725798626341,30.8875,129.75,129.68,8.7394]
[1725798626656,45.0,129.74,129.68,8.7394]
[1725798627059,68.18,129.74,129.68,8.7394]
[1725798627557,45.0,129.74,129.68,8.7394]
[1725798627848,45.0,129.75,129.71,7.7093]
[1725798628414,52.7066,129.76,129.72,7.7089]
[1725798628655,75.8866,129.76,129.72,7.7089]
[1725798629159,23.18,129.74,129.68,8.7394]
[1725798629370,45.0,129.73,129.68,8.7394]
[1725798629736,52.7084,129.73,129.68,8.7394]
[1725798629934,52.7084,129.73,129.65,3.1381]
[1725798629935,7.7089,129.72,129.65,3.1381]
[1725798630141,45.0,129.71,129.65,3.1381]
[1725798630341,52.7095,129.71,129.64,8.7394]
[1725798631449,45.0,129.71,129.64,8.7394]
[1725798632567,45.0,129.71,129.67,7.7114]
[1725798634041,7.7091,129.72,129.67,7.7114]
[1725798634234,7.7091,129.72,129.68,7.7112]
[1725798636149,23.18,129.74,129.7,7.71]
[1725798636352,30.8878,129.74,129.7,7.71]
[1725798636652,30.8878,129.74,129.64,8.7394]
[1725798636653,7.7088,129.73,129.64,8.7394]
[1725798637164,7.7088,129.73,129.68,7.7108]
[1725798638774,7.7088,129.73,129.69,7.7106]
[1725798641971,30.8888,129.73,129.68,7.711]
[1725798642146,52.709,129.72,129.68,7.711]
[1725798642547,7.7097,129.71,129.67,7.7117]
[1725798643052,23.18,129.7,129.64,8.7394]
[1725798643259,45.0,129.69,129.65,7.7126]
[1725798643769,75.8908,129.69,129.64,7.7135]
[1725798645374,7.7114,129.68,129.64,7.7135]
[1725798646656,52.7108,129.69,129.65,7.7129]
[1725798646850,7.7108,129.69,129.65,7.7129]
[1725798647957,15.5669,129.7,129.66,7.7123]
[1725798648154,23.277,129.7,129.66,7.7123]
[1725798649458,46.457,129.7,129.66,7.7123]
[1725798649776,23.277,129.7,129.66,7.7123]
[1725798651050,30.889,129.72,129.68,7.7111]
[1725798651256,46.09120532,129.73,129.68,7.7111]
[1725798651476,7.7089,129.72,129.68,7.7111]
[1725798652478,46.09120532,129.73,129.69,7.7105]
[1725798653496,46.09120532,129.73,129.68,7.7111]
[1725798655475,37.4898,129.73,129.69,7.7106]
[1725798656263,6.6014,129.73,129.69,7.7106]
[1725798657407,46.8453,129.74,129.7,7.7099]
[1725798658880,39.1375,129.74,129.71,7.7094]
[1725798659278,39.1375,129.74,129.7,7.7098]
[1725798660300,39.1375,129.74,129.71,7.7094]
[1725798660583,46.8452,129.74,129.7,7.71]
[1725798661789,39.1375,129.74,129.71,7.7094]
[1725798662361,39.1375,129.74,129.7,7.7098]
[1725798662987,39.1375,129.74,129.71,7.7093]
[1725798664164,39.1375,129.74,129.7,7.7098]
[1725798665694,39.1375,129.74,129.69,7.7105]
[1725798665695,55.44670532,129.74,129.69,7.7105]
[1725798666369,46.8453,129.74,129.69,7.7105]
[1725798666573,39.1375,129.74,129.7,7.7098]
[1725798666884,23.18,129.75,129.72,7.7084]
[1725798671347,30.8873,129.75,129.66,8.7394]
[1725798671616,68.18,129.74,129.66,8.7394]
[1725798672695,75.888,129.74,129.66,8.7394]
[1725798674391,30.8893,129.72,129.67,7.7114]
[1725798674578,30.8893,129.72,129.64,3.1381]
[1725798674579,30.8893,129.72,129.68,7.7112]
[1725798678881,46.6267,129.72,129.67,7.7117]
[1725798679081,23.18,129.7,129.67,7.7117]
[1725798679393,23.18,129.7,129.66,7.7123]
[1725798679584,30.8901,129.7,129.66,7.7123]
[1725798679767,23.18,129.7,129.66,7.7123]
[1725798680192,23.18,129.7,129.67,7.7116]
[1725798680695,23.18,129.71,129.68,7.7111]
[1725798683475,30.8895,129.71,129.67,7.7117]
[1725798683673,22.2854,129.72,129.62,0.8561494]
[1725798683674,23.18,129.69,129.65,7.7126]
[1725798683915,68.18,129.68,129.65,7.7126]
[1725798686303,23.18,129.69,129.65,7.7126]
[1725798686885,23.18,129.69,129.66,7.7124]
[1725798687603,70.2,129.77,129.62,0.8561494]
[1725798687604,23.18,129.66,129.62,8.5704494]
[1725798687791,23.18,129.66,129.63,7.714]
[1725798688611,23.18,129.66,129.62,0.8561494]
[1725798688782,30.8925,129.66,129.62,0.8561494]
[1725798689308,68.18,129.65,129.62,0.8561494]
[1725798689691,75.8933,129.65,129.62,0.8561494]
[1725798690047,52.9057,129.63,129.62,0.8561494]
[1725798690335,97.9057,129.63,129.62,0.8561494]
[1725798691127,45.1915,129.63,129.62,0.8561494]
[1725798691783,22.0115,129.63,129.62,0.8561494]
[1725798692405,7.7126,129.66,129.62,0.8561494]
[1725798692607,23.18,129.65,129.62,0.8561494]
[1725798692788,23.18,129.65,129.62,8.5707494]
[1725798694631,23.18,129.65,129.62,0.8561494]
[1725798696921,23.18,129.64,129.62,0.8561494]
[1725798697825,30.8938,129.64,129.62,0.8561494]
[1725798699422,30.8932,129.65,129.62,0.8561494]
[1725798701206,68.18,129.64,129.62,0.8561494]
[1725798701521,75.8938,129.64,129.62,0.8561494]
[1725798701837,52.9057,129.63,129.62,0.8561494]
[1725798702131,22.0115,129.63,129.62,0.8561494]
[1725798702414,16.0057,129.63,129.62,0.8561494]
[1725798702810,23.18,129.64,129.62,0.8561494]
[1725798703022,30.8932,129.65,129.62,0.8561494]
[1725798703800,23.18,129.65,129.62,0.8561494]
[1725798704220,23.18,129.65,129.62,8.5708494]
[1725798704417,23.18,129.65,129.62,0.8561494]
[1725798704623,23.18,129.64,129.62,0.8561494]
[1725798707303,30.8936,129.64,129.62,0.8561494]
[1725798710829,23.18,129.63,129.62,0.8561494]
[1725798711910,23.18,129.64,129.62,0.8561494]
[1725798722745,30.8937,129.64,129.62,0.8561494]
[1725798722929,23.18,129.63,129.62,0.8561494]
[1725798725421,30.8942,129.63,129.62,0.8561494]
[1725798725616,75.8942,129.63,129.62,0.8561494]
[1725798726449,95.8942,129.63,129.62,0.8561494]
[1725798727214,118.5167,129.63,129.62,0.8561494]
[1725798729360,23.18,129.64,129.62,8.5709494]
[1725798729733,23.18,129.64,129.62,0.8561494]
[1725798730559,7.7136,129.64,129.62,0.8561494]
[1725798730751,23.18,129.63,129.62,0.8561494]
[1725798732026,30.8942,129.63,129.62,0.8561494]
[1725798732226,75.8942,129.63,129.62,0.8561494]
[1725798732947,75.8942,129.63,129.46,16.74506886]
[1725798732948,23.18,129.55,129.46,16.74506886]
[1725798733248,22.2833,129.59,129.47,4.0942]
[1725798733249,23.18,129.57,129.47,4.0942]
[1725798733551,7.7185,129.56,129.47,4.0942]
[1725798733717,7.7185,129.56,129.48,0.3561494]
[1725798733924,30.8985,129.56,129.48,0.3561494]
[1725798734553,30.8978,129.57,129.48,0.3561494]
[1725798734848,7.7166,129.59,129.48,0.3561494]
[1725798735027,7.7166,129.59,129.49,8.7394]
[1725798735887,30.8966,129.59,129.5,20.0]
[1725798735929,7.7178,129.57,129.49,8.7394]
[1725798736248,30.8978,129.57,129.49,8.7394]
[1725798736551,7.719,129.55,129.49,8.7394]
[1725798736857,30.899,129.55,129.49,8.7394]
[1725798737226,7.7198,129.54,129.49,8.7394]
[1725798737646,7.719,129.55,129.49,8.7394]
[1725798737827,30.899,129.55,129.49,8.7394]
[1725798739646,30.8984,129.57,129.49,8.7394]
[1725798740331,30.8987,129.56,129.49,8.7394]
[1725798743364,23.18,129.54,129.48,0.3561494]
[1725798744442,23.18,129.55,129.48,0.3561494]
[1725798744859,23.18,129.57,129.49,8.7394]
[1725798748153,30.8979,129.57,129.49,8.7394]
[1725798752249,30.897,129.59,129.49,8.7394]
[1725798752552,20.8096025,129.62,129.48,4.4503494]
[1725798752553,9.79185652,129.62,129.51,12.8336]
[1725798752871,22.1385,129.63,129.52,45.0]
[1725798753166,29.8532,129.63,129.52,45.0]
[1725798753583,23.23,129.62,129.52,45.0]
[1725798755063,25.7585,129.66,129.54,4.0942]
[1725798755064,23.23,129.64,129.54,4.0942]
[1725798755366,23.23,129.64,129.55,46.54324337]
[1725798755573,43.9836025,129.67,129.56,8.7394]
[1725798755865,7.7126,129.66,129.56,8.7394]
[1725798756065,23.23,129.65,129.56,8.7394]
[1725798756365,32.96535652,129.67,129.57,45.0]
[1725798756771,9.79185652,129.67,129.57,45.0]
[1725798756948,38.6916,129.7,129.59,12.8336]
[1725798757164,23.23,129.7,129.6,65.0]
[1725798757958,7.7099,129.71,129.6,65.0]
[1725798758161,7.7099,129.71,129.6,45.0]
[1725798758551,9.79185652,129.72,129.61,20.0]
[1725798758747,9.79185652,129.72,129.62,45.0]
[1725798759264,17.50095652,129.72,129.62,45.0]
[1725798759865,17.50095652,129.72,129.63,8.7394]
[1725798761549,7.7095,129.71,129.63,8.7394]
[1725798761861,7.7096,129.71,129.63,8.7394]
[1725798762065,7.709,129.72,129.63,8.7394]
[1725798766863,7.709,129.72,129.64,4.0942]
[1725798768463,30.9384,129.73,129.64,4.0942]
[1725798769457,7.7084,129.73,129.64,4.0942]
[1725798770859,30.9384,129.73,129.64,4.0942]
[1725798771081,40.73025652,129.73,129.64,4.0942]
[1725798772172,7.7089,129.72,129.64,4.0942]
[1725798776059,23.23,129.75,129.64,4.0942]
[1725798776266,7.709,129.72,129.64,4.0942]
[1725798776883,7.209,129.72,129.65,45.0]
[1725798778087,7.7095,129.71,129.64,4.0942]
[1725798780462,30.939,129.72,129.64,4.0942]
[1725798780780,7.709,129.72,129.64,4.0942]
[1725798780970,7.709,129.72,129.65,45.0]
[1725798781170,7.7096,129.71,129.64,4.0942]
[1725798781571,23.23,129.7,129.64,4.0942]
[1725798781899,7.7112,129.69,129.64,4.0942]
[1725798781995,7.7112,129.69,129.63,8.7394]
[1725798782602,7.7129,129.66,129.6,8.7394]
[1725798783080,23.23,129.67,129.6,8.7394]
[1725798783271,68.23,129.66,129.6,8.7394]
[1725798783478,7.7137,129.64,129.6,8.7394]
[1725798785964,7.7132,129.65,129.6,8.7394]
[1725798787684,7.7131,129.65,129.6,8.7394]
[1725798789788,7.7124,129.66,129.6,8.7394]
[1725798789968,7.7119,129.67,129.6,8.7394]
[1725798791772,7.7128,129.66,129.6,8.7394]
[1725798792987,23.23,129.65,129.6,8.7394]
[1725798793980,30.9432,129.65,129.6,8.7394]
[1725798795188,30.9438,129.64,129.57,8.7394]
[1725798796276,30.9443,129.63,129.57,8.7394]
[1725798797076,15.914,129.65,129.57,8.7394]
[1725798797077,30.9451,129.62,129.57,8.7394]
[1725798797478,30.9442,129.63,129.57,8.7394]
[1725798797782,30.9442,129.63,129.55,4.0942]
[1725798798302,30.945,129.62,129.55,4.0942]
[1725798799493,30.9443,129.63,129.55,4.0942]
[1725798799704,7.7138,129.64,129.55,4.0942]
[1725798800218,7.7138,129.64,129.56,45.0]
[1725798800711,30.9438,129.64,129.56,45.0]
[1725798801685,30.9444,129.63,129.55,4.0942]
[1725798802209,7.7161,129.6,129.55,4.0942]
[1725798802404,30.9461,129.6,129.54,8.7394]
[1725798804284,30.9455,129.61,129.54,8.7394]
[1725798806009,30.9449,129.62,129.54,8.7394]
[1725798806994,7.7144,129.63,129.54,8.7394]
[1725798807202,30.9444,129.63,129.55,45.0]
[1725798807813,30.945,129.62,129.54,8.7394]
[1725798808130,7.715,129.62,129.54,8.7394]
[1725798808448,30.945,129.62,129.54,8.7394]
[1725798808757,7.7155,129.61,129.54,8.7394]
[1725798809188,30.9449,129.62,129.54,8.7394]
[1725798819718,37.1984,129.61,129.54,8.7394]
[1725798819919,23.23,129.6,129.54,8.7394]
[1725798820107,30.947,129.59,129.51,8.7394]
[1725798823212,7.7178,129.57,129.49,4.0942]
[1725798823396,30.9478,129.57,129.48,9.0955494]
[1725798823594,25.5417,129.61,129.48,0.3561494]
[1725798823595,7.7208,129.53,129.48,0.3561494]
[1725798823915,23.23,129.54,129.48,0.3561494]
[1725798824103,15.5012,129.55,129.48,0.3561494]
[1725798824104,30.9515,129.51,129.48,0.3561494]
[1725798824502,23.23,129.51,129.48,0.3561494]
[1725798825124,30.9509,129.52,129.48,0.3561494]
[1725798825303,23.23,129.53,129.48,0.3561494]
[1725798826028,7.7197,129.54,129.48,0.3561494]
[1725798826322,15.5012,129.55,129.48,0.3561494]
[1725798826905,29.4705,129.59,129.48,0.3561494]
[1725798827317,23.23,129.58,129.48,0.3561494]
[1725798827509,21.7536,129.59,129.49,4.0942]
[1725798827718,21.7536,129.59,129.5,45.0]
[1725798828390,44.9836,129.59,129.5,45.0]
[1725798828713,54.77545652,129.59,129.5,45.0]
[1725798830825,62.49225652,129.59,129.49,4.0942]
[1725798831219,62.49225652,129.59,129.49,24.0942]
[1725798831414,62.49225652,129.59,129.49,4.0942]
[1725798831888,30.9473,129.58,129.49,4.0942]
[1725798832626,23.23,129.58,129.49,4.0942]
[1725798833016,39.26205652,129.59,129.49,4.0942]
[1725798833350,7.7173,129.58,129.49,4.0942]
[1725798836116,7.718,129.57,129.48,0.3561494]
[1725798838534,23.23,129.58,129.48,0.3561494]
[1725798838726,7.7185,129.56,129.48,0.3561494]
[1725798840345,7.719,129.55,129.48,0.3561494]
[1725798840811,7.7196,129.54,129.48,0.3561494]
[1725798841142,23.23,129.54,129.48,0.3561494]
[1725798841428,7.7208,129.52,129.48,0.3561494]
[1725798842415,7.7214,129.51,129.48,0.3561494]
[1725798842617,23.23,129.51,129.48,0.3561494]
[1725798842948,31.21490173,129.54,129.48,0.3561494]
[1725798842949,23.23,129.53,129.48,0.3561494]
[1725798843990,7.7212,129.52,129.48,0.3561494]
[1725798844943,7.7214,129.51,129.48,0.3561494]
[1725798845245,30.9514,129.51,129.48,0.3561494]
[1725798845434,7.7221,129.5,129.48,0.3561494]
[1725798845949,30.9521,129.5,129.48,0.3561494]
[1725798846150,7.7226,129.49,129.48,0.3561494]
[1725798847363,30.9526,129.49,129.48,0.3561494]
[1725798847976,7.7226,129.49,129.48,0.3561494]
[1725798848171,30.9526,129.49,129.48,0.3561494]
[1725798848461,62.57645652,129.49,129.48,0.3561494]
[1725798849336,107.57645652,129.49,129.48,0.3561494]
[1725798849536,62.57645652,129.49,129.48,0.3561494]
[1725798850291,107.57645652,129.49,129.48,0.3561494]
[1725798850959,21.832,129.49,129.48,0.3561494]
[1725798851142,52.7846,129.49,129.48,0.3561494]
[1725798851755,29.5546,129.49,129.48,0.3561494]
[1725798853483,15.3964,129.49,129.48,0.3561494]
[1725798854065,7.722,129.5,129.48,0.3561494]
[1725798854569,7.7214,129.51,129.48,0.3561494]
[1725798854774,22.4716,129.52,129.48,0.3561494]
[1725798855064,30.1926,129.52,129.48,0.3561494]
[1725798855265,7.7214,129.51,129.48,0.3561494]
[1725798856867,19.2966,129.56,129.48,0.3561494]
[1725798856868,45.7016,129.56,129.48,0.3561494]
[1725798857343,54.95110493,129.56,129.48,0.3561494]
[1725798857869,7.7201,129.54,129.48,0.3561494]
[1725798861550,54.95110493,129.56,129.48,0.3561494]
[1725798861761,7.7212,129.52,129.48,0.3561494]
[1725798862908,45.0,129.55,129.48,0.3561494]
[1725798863133,7.7201,129.54,129.48,0.3561494]
[1725798863269,22.4716,129.56,129.48,0.3561494]
[1725798863473,7.7191,129.55,129.48,0.3561494]
[1725798865673,7.7198,129.54,129.48,0.3561494]
[1725798866969,7.7207,129.53,129.48,0.3561494]
[1725798869356,7.7197,129.54,129.48,0.3561494]
[1725798870961,7.7194,129.55,129.48,0.3561494]
[1725798871362,7.7197,129.54,129.48,0.3561494]
[1725798872472,7.7201,129.54,129.48,0.3561494]
[1725798875281,16.96860493,129.55,129.48,0.3561494]
[1725798875491,7.7179,129.57,129.48,4.4503494]
[1725798875676,7.7179,129.57,129.49,8.7394]
[1725798875991,7.7185,129.56,129.49,8.7394]
[1725798876186,7.7191,129.55,129.49,8.7394]
[1725798876919,16.96800493,129.56,129.49,8.7394]
[1725798878286,23.23,129.55,129.49,8.7394]
[1725798878966,23.23,129.55,129.48,4.4503494]
[1725798878967,23.23,129.55,129.48,0.3561494]
[1725798879173,30.9504,129.53,129.48,0.3561494]
[1725798881192,30.9509,129.52,129.48,0.3561494]
[1725798881988,23.23,129.5,129.48,0.3561494]
[1725798882168,30.9521,129.5,129.48,0.3561494]
[1725798884271,7.7214,129.51,129.48,0.3561494]
[1725798884589,30.9514,129.51,129.48,0.3561494]
[1725798886773,23.23,129.54,129.48,0.3561494]
[1725798886975,30.95,129.54,129.48,0.3561494]
[1725798887173,30.9503,129.53,129.48,0.3561494]
[1725798887584,22.2593,129.55,129.48,0.3561494]
[1725798887770,30.9497,129.54,129.48,0.3561494]
[1725798888473,7.7197,129.54,129.48,0.3561494]
[1725798888995,9.24950493,129.57,129.48,0.3561494]
[1725798889195,16.96780493,129.57,129.48,0.3561494]
[1725798889759,40.19780493,129.57,129.48,0.3561494]
[1725798890585,40.19780493,129.57,129.49,8.7394]
[1725798891404,40.19780493,129.57,129.49,12.8336]
[1725798893305,30.9483,129.57,129.49,12.8336]
[1725798893794,40.19780493,129.57,129.49,12.8336]
[1725798894375,30.9473,129.58,129.49,12.8336]
[1725798895094,7.7173,129.58,129.49,12.8336]
[1725798895281,30.9473,129.58,129.49,12.8336]
[1725798895483,40.19680493,129.58,129.49,12.8336]
[1725798898604,23.23,129.55,129.48,0.3561494]
[1725798898981,7.7189,129.56,129.48,0.3561494]
[1725798899195,30.9489,129.56,129.48,0.3561494]
[1725798900598,30.949,129.55,129.48,0.3561494]
[1725798901501,7.719,129.55,129.48,0.3561494]
[1725798901899,7.7183,129.57,129.48,0.3561494]
[1725798902204,7.7183,129.57,129.49,12.8336]
[1725798902702,30.9483,129.57,129.49,12.8336]
[1725798903480,7.7183,129.57,129.49,12.8336]
[1725798903807,30.9483,129.57,129.49,12.8336]
[1725798904193,7.7183,129.57,129.49,12.8336]
[1725798904708,30.9483,129.57,129.49,12.8336]
[1725798905701,7.7173,129.58,129.49,12.8336]
[1725798905946,7.7173,129.58,129.5,45.0]
[1725798907198,52.6466,129.59,129.5,45.0]
[1725798908020,16.96680493,129.58,129.5,45.0]
[1725798908327,7.718,129.57,129.49,12.8336]
[1725798910196,7.7173,129.58,129.49,12.8336]
[1725798910415,7.7173,129.58,129.5,45.0]
[1725798910785,21.6998,129.59,129.5,45.0]
[1725798911009,7.7166,129.59,129.5,45.0]
[1725798913880,22.8351,129.62,129.51,8.7394]
[1725798914089,7.7158,129.61,129.52,46.54365534]
[1725798914306,7.7158,129.61,129.52,45.0]
[1725798916316,46.0651,129.65,129.54,8.7394]
[1725798916409,55.31460493,129.65,129.55,45.0]
[1725798916807,7.7138,129.64,129.55,45.0]
[1725798918103,7.7131,129.65,129.56,12.8336]
[1725798918328,7.7125,129.66,129.57,45.0]
[1725798919095,7.7117,129.68,129.57,45.0]
[1725798919320,7.7117,129.68,129.58,8.7394]
[1725798919617,7.7117,129.68,129.59,45.0]
[1725798919990,7.7119,129.67,129.59,45.0]
[1725798920200,22.8351,129.69,129.59,45.0]
[1725798920618,16.2371,129.69,129.59,45.0]
[1725798921005,7.7102,129.7,129.6,4.0942]
[1725798921220,7.7102,129.7,129.62,8.7394]
[1725798921417,7.7107,129.69,129.63,45.0]
[1725798924114,7.7105,129.7,129.63,45.0]
[1725798924316,7.7107,129.69,129.63,45.0]
[1725798925016,7.7105,129.7,129.63,45.0]
[1725798925327,19.274,129.71,129.62,8.7394]
[1725798925704,7.7114,129.68,129.62,8.7394]
[1725798926116,19.274,129.71,129.62,8.7394]
[1725798926117,7.7108,129.69,129.62,8.7394]
[1725798926524,7.7102,129.7,129.62,8.7394]
[1725798926821,7.7102,129.7,129.63,45.0]
[1725798927404,7.7108,129.69,129.63,45.0]
[1725798928528,7.7114,129.68,129.62,8.7394]
[1725798929127,7.712,129.67,129.62,8.7394]
[1725798929719,7.7113,129.68,129.62,8.7394]
[1725798929917,7.7108,129.69,129.62,8.7394]
[1725798930118,7.7108,129.69,129.63,45.0]
[1725798931732,7.7117,129.68,129.62,8.7394]
[1725798931937,7.7122,129.67,129.62,8.7394]
[1725798932425,7.712,129.67,129.62,8.7394]
[1725798935535,7.7114,129.68,129.62,8.7394]
[1725798937305,7.7114,129.68,129.63,45.0]
[1725798940812,7.7108,129.69,129.63,45.0]
[1725798941238,7.7113,129.68,129.63,45.0]
[1725798941824,7.7113,129.68,129.62,8.7394]
[1725798942835,7.712,129.67,129.62,8.7394]
[1725798943365,7.7114,129.68,129.62,8.7394]
[1725798948736,23.23,129.71,129.62,8.7394]
[1725798949043,7.7106,129.7,129.63,45.0]
[1725798950569,7.7116,129.68,129.63,45.0]
[1725798950767,7.7108,129.69,129.63,45.0]
[1725798951227,30.9401,129.7,129.63,45.0]
[1725798951750,7.7107,129.69,129.63,45.0]
[1725798953145,21.9247,129.72,129.63,45.0]
[1725798953722,23.6163,129.72,129.63,45.0]
[1725798953973,7.7094,129.72,129.63,45.0]
[1725798954232,7.7095,129.71,129.63,45.0]
[1725798957456,7.7089,129.72,129.63,45.0]
[1725798958538,7.7089,129.72,129.64,4.0942]
[1725798958744,7.7084,129.73,129.66,8.7394]
[1725798958942,7.7084,129.73,129.67,45.0]
[1725798959261,7.7079,129.74,129.67,45.0]
[1725798962839,23.23,129.77,129.67,45.0]
[1725798963047,7.7066,129.76,129.67,45.0]
[1725798963450,7.7059,129.77,129.68,12.8336]
[1725798963666,7.7059,129.77,129.69,45.0]
[1725798963961,7.7054,129.78,129.69,45.0]
[1725798965353,7.7047,129.79,129.7,8.7394]
[1725798965653,7.7047,129.79,129.71,45.0]
[1725798965835,15.9737,129.8,129.71,45.0]
[1725798966170,23.6783,129.8,129.71,45.0]
[1725798966700,7.7048,129.79,129.71,45.0]
[1725798966830,23.678,129.8,129.71,45.0]
[1725798967030,7.7042,129.8,129.72,4.0942]
[1725798967234,7.7042,129.8,129.73,45.0]
[1725798968747,0.5,129.81,129.72,4.0942]
[1725798968952,7.7058,129.78,129.72,4.0942]
[1725798970071,7.706,129.77,129.72,4.0942]
[1725798970265,7.7065,129.76,129.7,8.7394]
[1725798973644,51.74060493,129.8,129.7,8.7394]
[1725798973645,32.47950493,129.8,129.7,8.7394]
[1725798973854,7.7059,129.77,129.7,8.7394]
[1725798974441,7.7054,129.78,129.71,45.0]
[1725798974942,7.7048,129.79,129.71,45.0]
[1725798975247,7.7042,129.8,129.71,45.0]
[1725798975589,7.7042,129.8,129.72,4.0942]
[1725798975750,7.7042,129.8,129.73,45.0]
[1725798977878,0.5,129.81,129.73,45.0]
[1725798977879,0.5,129.81,129.74,8.7394]
[1725798978072,0.5,129.81,129.75,45.0]
[1725798980751,0.5,129.81,129.76,4.0942]
[1725798981060,0.5,129.81,129.77,45.0]
[1725798981366,0.5,129.81,129.78,8.7394]
[1725798981852,0.5,129.81,129.79,45.0]
[1725798982763,0.5,129.81,129.8,4.0942]
[1725798982965,0.5,129.81,129.8,49.0942]
[1725798983171,0.5,129.81,129.78,8.7394]
[1725798985072,0.5,129.81,129.76,4.0942]
[1725798986691,0.5,129.81,129.77,45.0]
[1725798988950,0.5,129.81,129.76,4.0942]
[1725798989146,0.5,129.81,129.75,8.7394]
[1725798989458,0.5,129.81,129.76,45.0]
[1725798998573,0.5,129.81,129.77,20.0]
[1725798998778,0.5,129.81,129.78,45.0]
[1725799002178,0.5,129.81,129.75,8.7394]
[1725799002377,0.5,129.81,129.71,8.7394]
[1725799003794,16.1864,129.8,129.71,8.7394]
[1725799004001,16.1864,129.8,129.72,20.0]
[1725799005003,16.1864,129.8,129.73,45.0]
[1725799005198,16.1864,129.8,129.74,20.0]
[1725799005376,23.8909,129.8,129.67,11.45631885]
[1725799006904,23.8909,129.8,129.69,45.0]
[1725799007108,39.4164,129.8,129.7,20.0]
[1725799007277,0.5,129.81,129.7,20.0]
[1725799007278,16.1864,129.76,129.7,20.0]
[1725799007480,16.1864,129.76,129.65,8.7394]
[1725799007713,23.8933,129.76,129.65,8.7394]
[1725799007887,16.1864,129.76,129.65,8.7394]
[1725799008707,16.1864,129.76,129.66,45.0]
[1725799009080,16.1864,129.76,129.67,20.0]
[1725799009286,16.1864,129.76,129.68,45.0]
[1725799009610,16.1864,129.76,129.69,20.0]
[1725799009936,16.1864,129.76,129.7,45.0]
[1725799012494,16.1864,129.76,129.71,20.0]
[1725799012813,16.1864,129.76,129.72,45.0]
[1725799017199,6.096,129.78,129.72,45.0]
[1725799017487,6.096,129.78,129.73,20.0]
[1725799017701,6.096,129.78,129.74,45.0]
[1725799017910,6.096,129.78,129.73,20.0]
[1725799018091,6.096,129.78,129.71,20.0]
[1725799018294,6.096,129.78,129.72,45.0]
[1725799018609,6.096,129.78,129.73,20.0]
[1725799019020,6.096,129.78,129.7,20.0]
[1725799019547,6.096,129.78,129.68,20.0]
[1725799020388,15.5039,129.77,129.64,4.0942]
[1725799020588,23.2099,129.77,129.64,4.0942]
[1725799021588,6.1885,129.76,129.64,4.0942]
[1725799021907,6.1885,129.76,129.65,45.0]
[1725799022012,6.1885,129.76,129.66,20.0]
[1725799022207,6.1885,129.76,129.67,45.0]
[1725799022390,6.1885,129.76,129.68,20.0]
[1725799022711,6.1885,129.76,129.69,45.0]
[1725799024712,6.1885,129.76,129.7,20.0]
[1725799024904,6.1885,129.76,129.71,45.0]
[1725799025118,6.1885,129.76,129.72,20.0]
[1725799025421,6.1885,129.76,129.73,45.0]